fUST/lending_fUST_20240912
["ID","MTS","AMOUNT","RATE_DAILY","PERIOD"]
[337804881,1726126275549,-500.0,0.0001863,2]
[337804882,1726126275558,-918.59,0.0001863,2]
[337804883,1726126275570,-500.0,0.0001863,2]
[337804884,1726126275580,-685.52,0.0001863,2]
[337804885,1726126275590,-500.0,0.0001863,2]
[337804886,1726126275600,-500.0,0.0001863,2]
[337804887,1726126275610,-500.0,0.0001863,2]
[337804888,1726126275621,-500.0,0.0001863,2]
[337804889,1726126275631,-546.95,0.0001863,2]
[337804890,1726126275641,-500.0,0.0001863,2]
[337804891,1726126275651,-500.0,0.0001863,2]
[337804892,1726126275661,-500.0,0.0001863,2]
[337804893,1726126275671,-500.0,0.0001863,2]
[337804894,1726126275680,-500.0,0.0001863,2]
[337804895,1726126275691,-690.13,0.0001863,2]
[337804896,1726126275701,-500.0,0.0001863,2]
[337804897,1726126275711,-500.0,0.0001863,2]
[337804898,1726126275720,-500.0,0.0001863,2]
[337804899,1726126275730,-500.0,0.0001863,2]
[337804900,1726126275740,-657.97,0.0001863,2]
[337804901,1726126275750,-1049.7,0.0001863,2]
[337804902,1726126275760,-500.0,0.0001863,2]
[337804903,1726126275769,-518.71,0.0001863,2]
[337804904,1726126275779,-623.44,0.0001863,2]
[337804905,1726126275788,-500.0,0.0001863,2]
[337804906,1726126275798,-500.0,0.0001863,2]
[337804907,1726126275808,-832.23,0.0001863,2]
[337804908,1726126275819,-997.48,0.0001863,2]
[337804909,1726126275829,-747.14,0.0001863,2]
[337804910,1726126275839,-500.0,0.0001863,2]
[337804911,1726126275848,-500.0,0.0001863,2]
[337804912,1726126275858,-729.56,0.0001863,2]
[337804913,1726126275868,-500.0,0.0001863,2]
[337804914,1726126275877,-202.44664588,0.0001863,2]
[337804915,1726126275887,-1516.84,0.0001863,2]
[337804916,1726126275897,-500.0,0.0001863,2]
[337804917,1726126275908,-506.41,0.0001863,2]
[337804918,1726126275917,-151.0,0.0001863,2]
[337804919,1726126275927,-514.03,0.0001863,2]
[337804920,1726126275937,-500.0,0.0001863,2]
[337804921,1726126275946,-303.17171102,0.0001863,2]
[337804922,1726126276134,-196.82828898,0.0001863,2]
[337804923,1726126276143,-667.46,0.0001863,2]
[337804924,1726126276153,-320.683205,0.0001863,2]
[337804925,1726126276163,-500.0,0.0001863,2]
[337804926,1726126276173,-320.683205,0.0001863,2]
[337804927,1726126276182,-500.0,0.0001863,2]
[337804928,1726126276191,-652.1,0.0001863,2]
[337804929,1726126276201,-7723.66,0.0001863,2]
[337804930,1726126276212,-521.98,0.0001863,2]
[337804931,1726126276222,-500.0,0.0001863,2]
[337804932,1726126276231,-500.0,0.0001863,2]
[337804933,1726126276240,-787.76,0.0001863,2]
[337804934,1726126276249,-500.0,0.0001863,2]
[337804935,1726126276259,-500.0,0.0001863,2]
[337804936,1726126276269,-500.0,0.0001863,2]
[337804937,1726126276279,-1100.14,0.0001863,2]
[337804938,1726126276288,-500.0,0.0001863,2]
[337804939,1726126276298,-500.0,0.0001863,2]
[337804940,1726126276308,-605.65,0.0001863,2]
[337804941,1726126276320,-500.0,0.0001863,2]
[337804942,1726126276330,-710.62048,0.0001863,2]
[337804943,1726126276339,-212.76,0.0001863,2]
[337804944,1726126276349,-710.62048,0.0001863,2]
[337804945,1726126276359,-500.0,0.0001863,2]
[337804946,1726126276368,-863.88,0.0001863,2]
[337804947,1726126276378,-500.0,0.0001863,2]
[337804948,1726126276388,-500.0,0.0001863,2]
[337804949,1726126276397,-500.0,0.0001863,2]
[337804950,1726126276407,-500.0,0.0001863,2]
[337804951,1726126276417,-625.41,0.0001863,2]
[337804952,1726126276427,-515.61,0.0001863,2]
[337804953,1726126276436,-500.0,0.0001863,2]
[337804954,1726126276446,-567.51,0.0001863,2]
[337804955,1726126276455,-658.34,0.0001863,2]
[337804956,1726126276464,-151.0,0.0001863,2]
[337804957,1726126276473,-500.0,0.0001863,2]
[337804958,1726126276482,-151.0,0.0001863,2]
[337804959,1726126276492,-500.0,0.0001863,2]
[337804960,1726126276502,-1244.31,0.0001863,2]
[337804961,1726126276512,-500.0,0.0001863,2]
[337804962,1726126276521,-500.0,0.0001863,2]
[337804963,1726126276530,-617.93,0.0001863,2]
[337804964,1726126276539,-880.87,0.0001863,2]
[337804965,1726126276549,-500.0,0.0001863,2]
[337804966,1726126276558,-500.0,0.0001863,2]
[337804967,1726126276568,-500.0,0.0001863,2]
[337804968,1726126276577,-7995.59,0.0001863,2]
[337804969,1726126276586,-500.0,0.0001863,2]
[337804970,1726126276596,-500.0,0.0001863,2]
[337804971,1726126276605,-730.56,0.0001863,2]
[337804972,1726126276615,-500.0,0.0001863,2]
[337804973,1726126276624,-643.36,0.0001863,2]
[337804974,1726126276633,-685.72,0.0001863,2]
[337804975,1726126276643,-891.8,0.0001863,2]
[337804976,1726126276653,-896.4,0.0001863,2]
[337804977,1726126276662,-500.0,0.0001863,2]
[337804978,1726126276671,-970.33,0.0001863,2]
[337804979,1726126276680,-667.17,0.0001863,2]
[337804980,1726126276690,-500.0,0.0001863,2]
[337804981,1726126276698,-921.58,0.0001863,2]
[337804982,1726126276708,-500.0,0.0001863,2]
[337804983,1726126276717,-587.36,0.0001863,2]
[337804984,1726126276726,-837.0,0.0001863,2]
[337804985,1726126276736,-1038.03,0.0001863,2]
[337804986,1726126276745,-816.23,0.0001863,2]
[337804987,1726126276754,-815.49,0.0001863,2]
[337804988,1726126276764,-1205.74,0.0001863,2]
[337804989,1726126276773,-1099.99,0.0001863,2]
[337804990,1726126276782,-545.66,0.0001863,2]
[337804991,1726126276792,-616.91,0.0001863,2]
[337804992,1726126276801,-539.08,0.0001863,2]
[337804993,1726126276811,-8490.67,0.0001863,2]
[337804994,1726126276823,-7192.56,0.0001863,2]
[337804995,1726126276832,-500.0,0.0001863,2]
[337804996,1726126276843,-2440.96,0.0001863,2]
[337804997,1726126276852,-500.0,0.0001863,2]
[337804998,1726126276862,-2090.39,0.0001863,2]
[337804999,1726126276871,-718.38,0.0001863,2]
[337805000,1726126276880,-1515.42,0.0001863,2]
[337805001,1726126276890,-382.7999997,0.0001863,2]
[337805002,1726126276900,-500.0,0.0001863,2]
[337805003,1726126276914,-6023.97,0.0001863,2]
[337805004,1726126276923,-1456.09,0.0001863,2]
[337805005,1726126276932,-833.83,0.0001863,2]
[337805006,1726126276941,-1240.93,0.0001863,2]
[337805007,1726126276951,-1382.75,0.0001863,2]
[337805008,1726126276960,-150.0,0.0001863,2]
[337805009,1726126276969,-591.45,0.0001863,2]
[337805010,1726126276978,-500.0,0.0001863,2]
[337805011,1726126276987,-500.0,0.0001863,2]
[337805012,1726126276997,-726.49,0.0001863,2]
[337805013,1726126277006,-309.2862749,0.0001863,2]
[337805014,1726126277015,-150.0,0.00018657,2]
[337805015,1726126277024,-500.0,0.00018657,2]
[337805016,1726126277034,-203.32992958,0.00018685,2]
[337805017,1726126277043,-618.27783336,0.00018685,2]
[337805018,1726126277052,-150.112233,0.000188,2]
[337805019,1726126277061,-500.0,0.00018904,2]
[337805020,1726126277074,-177.49185577,0.00018904,2]
[337805021,1726126277083,-500.0,0.00018904,2]
[337805022,1726126277092,-500.0,0.00018904,2]
[337805023,1726126277101,-500.0,0.00018904,2]
[337805024,1726126277111,-556.11,0.00018904,2]
[337805025,1726126277120,-500.0,0.00018904,2]
[337805026,1726126277130,-572.83,0.00018904,2]
[337805027,1726126277139,-687.88,0.00018904,2]
[337805028,1726126277149,-500.0,0.00018904,2]
[337805029,1726126277159,-288.84193301,0.00018904,2]
[337805030,1726126277168,-543.0,0.00018904,2]
[337805031,1726126277177,-500.0,0.00018904,2]
[337805032,1726126277187,-500.0,0.00018904,2]
[337805033,1726126277196,-500.0,0.00018904,2]
[337805034,1726126277206,-500.0,0.00018904,2]
[337805035,1726126277220,-918.59,0.00018904,2]
[337805036,1726126277229,-500.0,0.00018904,2]
[337805037,1726126277239,-685.52,0.00018904,2]
[337805038,1726126277248,-500.0,0.00018904,2]
[337805039,1726126277259,-500.0,0.00018904,2]
[337805040,1726126277269,-500.0,0.00018904,2]
[337805041,1726126277278,-500.0,0.00018904,2]
[337805042,1726126277289,-546.95,0.00018904,2]
[337805043,1726126277299,-500.0,0.00018904,2]
[337805044,1726126277309,-500.0,0.00018904,2]
[337805045,1726126277320,-500.0,0.00018904,2]
[337805046,1726126277330,-500.0,0.00018904,2]
[337805047,1726126277339,-500.0,0.00018904,2]
[337805048,1726126277349,-690.13,0.00018904,2]
[337805049,1726126277359,-500.0,0.00018904,2]
[337805050,1726126277368,-500.0,0.00018904,2]
[337805051,1726126277378,-500.0,0.00018904,2]
[337805052,1726126277387,-500.0,0.00018904,2]
[337805053,1726126277398,-657.97,0.00018904,2]
[337805054,1726126277408,-1049.7,0.00018904,2]
[337805055,1726126277418,-500.0,0.00018904,2]
[337805056,1726126277428,-518.71,0.00018904,2]
[337805057,1726126277437,-623.44,0.00018904,2]
[337805058,1726126277447,-151.0,0.00018904,2]
[337805059,1726126277457,-151.0,0.00018904,2]
[337805060,1726126277467,-372.26442078,0.00018904,2]
[337805061,1726126277476,-500.0,0.00018904,2]
[337805062,1726126277486,-151.0,0.00018904,2]
[337805063,1726126277496,-832.23,0.00018904,2]
[337805064,1726126277505,-997.48,0.00018904,2]
[337805065,1726126277515,-747.14,0.00018904,2]
[337805066,1726126277525,-500.0,0.00018904,2]
[337805067,1726126277534,-500.0,0.00018904,2]
[337805068,1726126277544,-729.56,0.00018904,2]
[337805069,1726126277553,-500.0,0.00018904,2]
[337805070,1726126277563,-151.0,0.00018904,2]
[337805071,1726126277582,-151.0,0.00018904,2]
[337805072,1726126277592,-1516.84,0.00018904,2]
[337805073,1726126277602,-500.0,0.00018904,2]
[337805074,1726126277612,-506.41,0.00018904,2]
[337805075,1726126277621,-514.03,0.00018904,2]
[337805076,1726126277631,-500.0,0.00018904,2]
[337805077,1726126277640,-696.048728,0.00018904,2]
[337805078,1726126277650,-500.0,0.00018904,2]
[337805079,1726126277659,-696.048728,0.00018904,2]
[337805080,1726126277669,-667.46,0.00018904,2]
[337805081,1726126277679,-323.932997,0.00018904,2]
[337805082,1726126277688,-323.932997,0.00018904,2]
[337805083,1726126277698,-151.0,0.00018904,2]
[337805084,1726126277708,-151.0,0.00018904,2]
[337805085,1726126277718,-151.0,0.00018904,2]
[337805086,1726126277884,-151.0,0.00018904,2]
[337805087,1726126277897,-151.0,0.00018904,2]
[337805088,1726126277908,-520.95193734,0.00018904,2]
[337805089,1726126277918,-500.0,0.00018904,2]
[337805090,1726126277928,-652.1,0.00018904,2]
[337805091,1726126277937,-7723.66,0.00018904,2]
[337805092,1726126277947,-521.98,0.00018904,2]
[337805093,1726126277957,-500.0,0.00018904,2]
[337805094,1726126277967,-500.0,0.00018904,2]
[337805095,1726126277978,-787.76,0.00018904,2]
[337805096,1726126277987,-500.0,0.00018904,2]
[337805097,1726126277997,-500.0,0.00018904,2]
[337805098,1726126278007,-500.0,0.00018904,2]
[337805099,1726126278017,-1100.14,0.00018904,2]
[337805100,1726126278027,-500.0,0.00018904,2]
[337805101,1726126278037,-500.0,0.00018904,2]
[337805102,1726126278048,-605.65,0.00018904,2]
[337805103,1726126278058,-500.0,0.00018904,2]
[337805104,1726126278072,-500.0,0.00018904,2]
[337805105,1726126278082,-863.88,0.00018904,2]
[337805106,1726126278092,-500.0,0.00018904,2]
[337805107,1726126278102,-500.0,0.00018904,2]
[337805108,1726126278113,-500.0,0.00018904,2]
[337805109,1726126278123,-500.0,0.00018904,2]
[337805110,1726126278134,-625.41,0.00018904,2]
[337805111,1726126278144,-515.61,0.00018904,2]
[337805112,1726126278154,-500.0,0.00018904,2]
[337805113,1726126278163,-567.51,0.00018904,2]
[337805114,1726126278173,-658.34,0.00018904,2]
[337805115,1726126278183,-500.0,0.00018904,2]
[337805116,1726126278193,-500.0,0.00018904,2]
[337805117,1726126278203,-1244.31,0.00018904,2]
[337805118,1726126278217,-500.0,0.00018904,2]
[337805119,1726126278227,-500.0,0.00018904,2]
[337805120,1726126278238,-617.93,0.00018904,2]
[337805121,1726126278247,-880.87,0.00018904,2]
[337805122,1726126278258,-500.0,0.00018904,2]
[337805123,1726126278268,-500.0,0.00018904,2]
[337805124,1726126278278,-500.0,0.00018904,2]
[337805125,1726126278289,-7995.59,0.00018904,2]
[337805126,1726126278299,-500.0,0.00018904,2]
[337805127,1726126278309,-500.0,0.00018904,2]
[337805128,1726126278319,-730.56,0.00018904,2]
[337805129,1726126278329,-373.91216106,0.00018904,2]
[337805130,1726126278339,-643.36,0.00018904,2]
[337805131,1726126278349,-685.72,0.00018904,2]
[337805132,1726126278359,-891.8,0.00018904,2]
[337805133,1726126278369,-151.0,0.00018904,2]
[337805134,1726126278379,-896.4,0.00018904,2]
[337805135,1726126278389,-376.306505,0.00018904,2]
[337805136,1726126278399,-500.0,0.00018904,2]
[337805137,1726126278409,-376.306505,0.00018904,2]
[337805138,1726126278420,-970.33,0.00018904,2]
[337805139,1726126278430,-1437.401088,0.00018904,2]
[337805140,1726126278440,-667.17,0.00018904,2]
[337805141,1726126278450,-513.7,0.00018904,2]
[337805142,1726126278459,-1437.401088,0.00018904,2]
[337805143,1726126278469,-921.58,0.00018904,2]
[337805144,1726126278478,-500.0,0.00018904,2]
[337805145,1726126278487,-587.36,0.00018904,2]
[337805146,1726126278498,-837.0,0.00018904,2]
[337805147,1726126278508,-1038.03,0.00018904,2]
[337805148,1726126278518,-151.0,0.00018904,2]
[337805149,1726126278528,-816.23,0.00018904,2]
[337805150,1726126278537,-815.49,0.00018904,2]
[337805151,1726126278547,-1205.74,0.00018904,2]
[337805152,1726126278557,-187.900087,0.00018904,2]
[337805153,1726126278569,-151.0,0.00018904,2]
[337805154,1726126278581,-151.0,0.00018904,2]
[337805155,1726126278591,-151.0,0.00018904,2]
[337805156,1726126278600,-187.900087,0.00018904,2]
[337805157,1726126278610,-151.0,0.00018904,2]
[337805158,1726126278620,-322.339873,0.00018904,2]
[337805159,1726126278630,-1099.99,0.00018904,2]
[337805160,1726126278639,-545.66,0.00018904,2]
[337805161,1726126278649,-383.078404,0.00018904,2]
[337805162,1726126278659,-322.339873,0.00018904,2]
[337805163,1726126278668,-616.91,0.00018904,2]
[337805164,1726126278678,-383.078404,0.00018904,2]
[337805165,1726126278687,-302.027356,0.00018904,2]
[337805166,1726126278697,-302.027356,0.00018904,2]
[337805167,1726126278707,-8490.67,0.00018904,2]
[337805168,1726126278717,-7192.56,0.00018904,2]
[337805169,1726126278726,-500.0,0.00018904,2]
[337805170,1726126278736,-156.70759,0.00018904,2]
[337805171,1726126278746,-2440.96,0.00018904,2]
[337805172,1726126278756,-500.0,0.00018904,2]
[337805173,1726126278766,-2090.39,0.00018904,2]
[337805174,1726126278775,-718.38,0.00018904,2]
[337805175,1726126278785,-1515.42,0.00018904,2]
[337805176,1726126278794,-500.0,0.00018904,2]
[337805177,1726126278805,-6023.97,0.00018904,2]
[337805178,1726126278816,-1456.09,0.00018904,2]
[337805179,1726126278826,-833.83,0.00018904,2]
[337805180,1726126278836,-1240.93,0.00018904,2]
[337805181,1726126278846,-1382.75,0.00018904,2]
[337805182,1726126278856,-591.45,0.00018904,2]
[337805183,1726126278865,-151.0,0.00018904,2]
[337805184,1726126278875,-500.0,0.00018904,2]
[337805185,1726126278885,-726.49,0.00018904,2]
[337805186,1726126278895,-659.99029222,0.00018942,2]
[337805187,1726126278904,-1000.0,0.00018942,2]
[337805188,1726126278914,-500.0,0.00019,2]
[337805189,1726126278924,-150.112233,0.00019,2]
[337805190,1726126278933,-402.89,0.00019178,2]
[337805191,1726126278943,-500.0,0.00019178,2]
[337805192,1726126278953,-500.0,0.00019178,2]
[337805193,1726126278962,-500.0,0.00019178,2]
[337805194,1726126278972,-556.11,0.00019178,2]
[337805195,1726126278981,-500.0,0.00019178,2]
[337805196,1726126278992,-572.83,0.00019178,2]
[337805197,1726126279001,-687.88,0.00019178,2]
[337805198,1726126279011,-500.0,0.00019178,2]
[337805199,1726126279020,-543.0,0.00019178,2]
[337805200,1726126279029,-500.0,0.00019178,2]
[337805201,1726126279039,-500.0,0.00019178,2]
[337805202,1726126279048,-500.0,0.00019178,2]
[337805203,1726126279058,-500.0,0.00019178,2]
[337805204,1726126279068,-918.59,0.00019178,2]
[337805205,1726126279078,-500.0,0.00019178,2]
[337805206,1726126279088,-685.52,0.00019178,2]
[337805207,1726126279097,-500.0,0.00019178,2]
[337805208,1726126279107,-500.0,0.00019178,2]
[337805209,1726126279116,-500.0,0.00019178,2]
[337805210,1726126279126,-500.0,0.00019178,2]
[337805211,1726126279135,-546.95,0.00019178,2]
[337805212,1726126279145,-500.0,0.00019178,2]
[337805213,1726126279154,-500.0,0.00019178,2]
[337805214,1726126279164,-203.37949489,0.00019178,2]
[337805215,1726126279173,-151.0,0.00019178,2]
[337805216,1726126279183,-500.0,0.00019178,2]
[337805217,1726126279192,-690.13,0.00019178,2]
[337805218,1726126279202,-500.0,0.00019178,2]
[337805219,1726126279215,-500.0,0.00019178,2]
[337805220,1726126279225,-500.0,0.00019178,2]
[337805221,1726126279234,-500.0,0.00019178,2]
[337805222,1726126279244,-657.97,0.00019178,2]
[337805223,1726126279255,-152.796424,0.00019178,2]
[337805224,1726126279265,-152.796424,0.00019178,2]
[337805225,1726126279274,-1049.7,0.00019178,2]
[337805226,1726126279284,-500.0,0.00019178,2]
[337805227,1726126279294,-409.67694,0.00019178,2]
[337805228,1726126279304,-409.67694,0.00019178,2]
[337805229,1726126279314,-518.71,0.00019178,2]
[337805230,1726126279323,-623.44,0.00019178,2]
[337805231,1726126279333,-151.0,0.00019178,2]
[337805232,1726126279342,-151.0,0.00019178,2]
[337805233,1726126279351,-500.0,0.00019178,2]
[337805234,1726126279360,-832.23,0.00019178,2]
[337805235,1726126279370,-997.48,0.00019178,2]
[337805236,1726126279381,-747.14,0.00019178,2]
[337805237,1726126279391,-500.0,0.00019178,2]
[337805238,1726126279401,-500.0,0.00019178,2]
[337805239,1726126279410,-729.56,0.00019178,2]
[337805240,1726126279419,-2000.0,0.00019178,2]
[337805241,1726126279429,-2000.0,0.00019178,2]
[337805242,1726126279438,-2000.0,0.00019178,2]
[337805243,1726126279448,-2000.0,0.00019178,2]
[337805244,1726126279457,-599.92987557,0.00019178,2]
[337805245,1726126279467,-500.0,0.00019178,2]
[337805246,1726126279476,-482.468695,0.00019178,2]
[337805247,1726126279486,-482.468695,0.00019178,2]
[337805248,1726126279495,-1516.84,0.00019178,2]
[337805249,1726126279505,-500.0,0.00019178,2]
[337805250,1726126279515,-506.41,0.00019178,2]
[337805251,1726126279525,-514.03,0.00019178,2]
[337805252,1726126279534,-233.30104967,0.00019178,2]
[337805253,1726126279544,-500.0,0.00019178,2]
[337805254,1726126279554,-667.46,0.00019178,2]
[337805255,1726126279563,-151.0,0.00019178,2]
[337805256,1726126279574,-500.0,0.00019178,2]
[337805257,1726126279584,-652.1,0.00019178,2]
[337805258,1726126279593,-7723.66,0.00019178,2]
[337805259,1726126279602,-521.98,0.00019178,2]
[337805260,1726126279612,-500.0,0.00019178,2]
[337805261,1726126279621,-500.0,0.00019178,2]
[337805262,1726126279630,-787.76,0.00019178,2]
[337805263,1726126279640,-500.0,0.00019178,2]
[337805264,1726126279649,-500.0,0.00019178,2]
[337805265,1726126279658,-500.0,0.00019178,2]
[337805266,1726126279668,-1100.14,0.00019178,2]
[337805267,1726126279677,-500.0,0.00019178,2]
[337805268,1726126279687,-500.0,0.00019178,2]
[337805269,1726126279696,-605.65,0.00019178,2]
[337805270,1726126279706,-500.0,0.00019178,2]
[337805271,1726126279715,-500.0,0.00019178,2]
[337805272,1726126279724,-151.0,0.00019178,2]
[337805273,1726126279734,-863.88,0.00019178,2]
[337805274,1726126279744,-500.0,0.00019178,2]
[337805275,1726126279753,-500.0,0.00019178,2]
[337805276,1726126279762,-279.91085824,0.00019178,2]
[337805277,1726126279772,-495.146954,0.00019178,2]
[337805278,1726126279781,-500.0,0.00019178,2]
[337805279,1726126279790,-495.146954,0.00019178,2]
[337805280,1726126279800,-625.41,0.00019178,2]
[337805281,1726126279809,-500.0,0.00019178,2]
[337805282,1726126279821,-515.61,0.00019178,2]
[337805283,1726126279832,-567.51,0.00019178,2]
[337805284,1726126279842,-658.34,0.00019178,2]
[337805285,1726126279852,-500.0,0.00019178,2]
[337805286,1726126279861,-500.0,0.00019178,2]
[337805287,1726126279871,-1244.31,0.00019178,2]
[337805288,1726126279882,-500.0,0.00019178,2]
[337805289,1726126279891,-500.0,0.00019178,2]
[337805290,1726126279901,-151.0,0.00019178,2]
[337805291,1726126279910,-617.93,0.00019178,2]
[337805292,1726126279918,-880.87,0.00019178,2]
[337805293,1726126279928,-956.229416,0.00019178,2]
[337805294,1726126279938,-500.0,0.00019178,2]
[337805295,1726126279948,-500.0,0.00019178,2]
[337805296,1726126279957,-956.229416,0.00019178,2]
[337805297,1726126279966,-184.98657995,0.00019178,2]
[337805298,1726126279976,-7995.59,0.00019178,2]
[337805299,1726126279985,-500.0,0.00019178,2]
[337805300,1726126279994,-500.0,0.00019178,2]
[337805301,1726126280004,-730.56,0.00019178,2]
[337805302,1726126280022,-643.36,0.00019178,2]
[337805303,1726126280034,-685.72,0.00019178,2]
[337805304,1726126280044,-891.8,0.00019178,2]
[337805305,1726126280055,-896.4,0.00019178,2]
[337805306,1726126280066,-500.0,0.00019178,2]
[337805307,1726126280075,-970.33,0.00019178,2]
[337805308,1726126280085,-667.17,0.00019178,2]
[337805309,1726126280094,-921.58,0.00019178,2]
[337805310,1726126280104,-500.0,0.00019178,2]
[337805311,1726126280113,-587.36,0.00019178,2]
[337805312,1726126280123,-837.0,0.00019178,2]
[337805313,1726126280132,-1038.03,0.00019178,2]
[337805314,1726126280142,-816.23,0.00019178,2]
[337805315,1726126280152,-815.49,0.00019178,2]
[337805316,1726126280162,-1205.74,0.00019178,2]
[337805317,1726126280171,-1099.99,0.00019178,2]
[337805318,1726126280181,-545.66,0.00019178,2]
[337805319,1726126280191,-616.91,0.00019178,2]
[337805320,1726126280200,-8490.67,0.00019178,2]
[337805321,1726126280212,-7192.56,0.00019178,2]
[337805322,1726126280223,-500.0,0.00019178,2]
[337805323,1726126280233,-2440.96,0.00019178,2]
[337805324,1726126280243,-500.0,0.00019178,2]
[337805325,1726126280254,-2090.39,0.00019178,2]
[337805326,1726126280264,-718.38,0.00019178,2]
[337805327,1726126280274,-1515.42,0.00019178,2]
[337805328,1726126280284,-598.26431409,0.00019178,2]
[337805329,1726126280294,-6023.97,0.00019178,2]
[337805330,1726126280304,-1456.09,0.00019178,2]
[337805331,1726126280315,-833.83,0.00019178,2]
[337805332,1726126280399,-1240.93,0.00019178,2]
[337805333,1726126280409,-1382.75,0.00019178,2]
[337805334,1726126280420,-591.45,0.00019178,2]
[337805335,1726126280431,-500.0,0.00019178,2]
[337805336,1726126280440,-726.49,0.00019178,2]
[337805337,1726126280449,-174.186568,0.00019178,2]
[337805338,1726126280458,-172.812373,0.00019178,2]
[337805339,1726126280468,-189.969777,0.00019178,2]
[337805340,1726126280477,-174.125562,0.00019178,2]
[337805341,1726126280487,-2546.938613,0.00019178,2]
[337805342,1726126280496,-55428.35,0.000192,2]
[337805343,1726126280506,-151.0,0.000192,2]
[337805344,1726126280515,-151.0,0.000192,2]
[337805345,1726126280524,-151.0,0.000192,2]
[337805346,1726126280534,-151.0,0.00019452,2]
[337805347,1726126280543,-151.0,0.00019452,2]
[337805348,1726126280553,-151.0,0.00019452,2]
[337805349,1726126280562,-151.0,0.00019452,2]
[337805350,1726126280572,-215.749268,0.00019452,2]
[337805351,1726126280581,-151.0,0.00019452,2]
[337805352,1726126280590,-151.0,0.00019452,2]
[337805353,1726126280600,-500.0,0.00019452,2]
[337805354,1726126280609,-500.0,0.00019452,2]
[337805355,1726126280623,-500.0,0.00019452,2]
[337805356,1726126280633,-556.11,0.00019452,2]
[337805357,1726126280643,-500.0,0.00019452,2]
[337805358,1726126280653,-572.83,0.00019452,2]
[337805359,1726126280663,-687.88,0.00019452,2]
[337805360,1726126280673,-500.0,0.00019452,2]
[337805361,1726126280683,-151.0,0.00019452,2]
[337805362,1726126280692,-543.0,0.00019452,2]
[337805363,1726126280702,-500.0,0.00019452,2]
[337805364,1726126280712,-500.0,0.00019452,2]
[337805365,1726126280721,-500.0,0.00019452,2]
[337805366,1726126280731,-500.0,0.00019452,2]
[337805367,1726126280741,-918.59,0.00019452,2]
[337805368,1726126280751,-500.0,0.00019452,2]
[337805369,1726126280761,-685.52,0.00019452,2]
[337805370,1726126280772,-500.0,0.00019452,2]
[337805371,1726126280782,-500.0,0.00019452,2]
[337805372,1726126280792,-500.0,0.00019452,2]
[337805373,1726126280803,-160.8232591,0.00019452,2]
[337805374,1726126280815,-151.0,0.00019452,2]
[337805375,1726126280825,-546.95,0.00019452,2]
[337805376,1726126280836,-159.66754272,0.00019452,2]
[337805377,1726126280845,-500.0,0.00019452,2]
[337805378,1726126280855,-500.0,0.00019452,2]
[337805379,1726126280867,-690.13,0.00019452,2]
[337805380,1726126280877,-500.0,0.00019452,2]